[Event "Early-Titled-Tuesday-Blitz-January-23-2024"]
[Site "Chess.com"]
[Date "2024.01.23"]
[Round "10"]
[White "Mikhail_Golubev"]
[Black "Carlitus2004"]
[Result "0-1"]
[WhiteElo "2496"]
[BlackElo "2398"]
[TimeControl "180+1"]
[EndTime "9:57:23 PST"]
[Termination "Carlitus2004 won on time"]

1. e4 {[%clk 0:03:00.9]} 1... e6 {[%clk 0:01:07.6]} 2. d4 {[%clk 0:02:56.2]}
2... d5 {[%clk 0:01:07.8]} 3. Nc3 {[%clk 0:02:56.6]} 3... a6 {[%clk 0:01:08]} 4.
Nf3 {[%clk 0:02:51]} 4... dxe4 {[%clk 0:01:07.6]} 5. Nxe4 {[%clk 0:02:50.4]}
5... Nf6 {[%clk 0:01:07.5]} 6. Bd3 {[%clk 0:02:45.8]} 6... Bd7 {[%clk 0:01:04]}
7. Nxf6+ {[%clk 0:02:28.4]} 7... gxf6 {[%clk 0:01:04.9]} 8. Bf4 {[%clk
0:02:15.3]} 8... c5 {[%clk 0:00:55.1]} 9. Qe2 {[%clk 0:01:58.8]} 9... cxd4
{[%clk 0:00:49.6]} 10. Nxd4 {[%clk 0:01:54.8]} 10... Nc6 {[%clk 0:00:48.5]} 11.
Nxc6 {[%clk 0:01:47.4]} 11... Bxc6 {[%clk 0:00:47.6]} 12. O-O-O {[%clk
0:01:46.8]} 12... Qa5 {[%clk 0:00:46.5]} 13. Bc4 {[%clk 0:01:31.1]} 13... Be7
{[%clk 0:00:45.7]} 14. Rhe1 {[%clk 0:01:06.6]} 14... Bd7 {[%clk 0:00:27.1]} 15.
Qf3 {[%clk 0:00:43.9]} 15... O-O-O {[%clk 0:00:23.8]} 16. Kb1 {[%clk 0:00:28.8]}
16... Bc6 {[%clk 0:00:22.7]} 17. Qb3 {[%clk 0:00:27.8]} 17... Rxd1+ {[%clk
0:00:16.1]} 18. Rxd1 {[%clk 0:00:26.8]} 18... Rd8 {[%clk 0:00:17]} 19. Rxd8+
{[%clk 0:00:23.3]} 19... Qxd8 {[%clk 0:00:17.9]} 20. c3 {[%clk 0:00:19.1]} 20...
Bc5 {[%clk 0:00:12.3]} 21. f3 {[%clk 0:00:14.2]} 21... Qd7 {[%clk 0:00:08.3]}
22. Qc2 {[%clk 0:00:13.2]} 22... h5 {[%clk 0:00:05.7]} 23. Qd2 {[%clk
0:00:10.6]} 23... Qxd2 {[%clk 0:00:04.8]} 24. Bxd2 {[%clk 0:00:11.3]} 24... h4
{[%clk 0:00:03.5]} 25. Be2 {[%clk 0:00:09.4]} 25... Bf2 {[%clk 0:00:03.3]} 26.
Bf4 {[%clk 0:00:08.8]} 26... e5 {[%clk 0:00:03]} 27. Bh6 {[%clk 0:00:07.8]}
27... Kd7 {[%clk 0:00:02.8]} 28. Bg7 {[%clk 0:00:07.5]} 28... Ke6 {[%clk
0:00:02.8]} 29. Bc4+ {[%clk 0:00:07.6]} 29... Ke7 {[%clk 0:00:02.9]} 30. Kc2
{[%clk 0:00:07.9]} 30... h3 {[%clk 0:00:03.4]} 31. gxh3 {[%clk 0:00:06.7]} 31...
Bxf3 {[%clk 0:00:04.1]} 32. Bd3 {[%clk 0:00:06.3]} 32... Bg1 {[%clk 0:00:04.5]}
33. Bf5 {[%clk 0:00:05.5]} 33... Bxh2 {[%clk 0:00:04.7]} 34. h4 {[%clk
0:00:05.8]} 34... Bf4 {[%clk 0:00:04.9]} 35. Kd3 {[%clk 0:00:05.3]} 35... Bg3
{[%clk 0:00:05.1]} 36. Bh6 {[%clk 0:00:05]} 36... Bxh4 {[%clk 0:00:05.2]} 37.
Be3 {[%clk 0:00:05.6]} 37... Bg5 {[%clk 0:00:05.1]} 38. Bc5+ {[%clk 0:00:06]}
38... Ke8 {[%clk 0:00:04.9]} 39. a4 {[%clk 0:00:05.8]} 39... Bc6 {[%clk
0:00:05.5]} 40. a5 {[%clk 0:00:05.7]} 40... Bd7 {[%clk 0:00:05.1]} 41. Be4
{[%clk 0:00:05.2]} 41... f5 {[%clk 0:00:05.1]} 42. Bxb7 {[%clk 0:00:04.9]} 42...
e4+ {[%clk 0:00:05.8]} 43. Ke2 {[%clk 0:00:04.6]} 43... Bb5+ {[%clk 0:00:06.2]}
44. Kf2 {[%clk 0:00:04.8]} 44... Bh4+ {[%clk 0:00:06.1]} 45. Kg2 {[%clk
0:00:04.3]} 45... f4 {[%clk 0:00:06.6]} 46. Bxe4 {[%clk 0:00:03.6]} 46... Kd7
{[%clk 0:00:06.4]} 47. Bf3 {[%clk 0:00:03.8]} 47... Ke6 {[%clk 0:00:06.5]} 48.
b3 {[%clk 0:00:04]} 48... Ke5 {[%clk 0:00:05.8]} 49. Bg1 {[%clk 0:00:04.4]}
49... Bd3 {[%clk 0:00:05.8]} 50. c4 {[%clk 0:00:04.4]} 50... Be7 {[%clk
0:00:05.8]} 51. c5 {[%clk 0:00:04.1]} 51... Bd8 {[%clk 0:00:05]} 52. c6 {[%clk
0:00:04.2]} 52... Bxa5 {[%clk 0:00:05.1]} 53. Bc5 {[%clk 0:00:04.1]} 53... Bc7
{[%clk 0:00:05.2]} 54. Be7 {[%clk 0:00:04]} 54... Be4 {[%clk 0:00:05.3]} 55. b4
{[%clk 0:00:04.1]} 55... Kd5 {[%clk 0:00:04.2]} 56. Bxe4+ {[%clk 0:00:03.7]}
56... Kxe4 {[%clk 0:00:05.1]} 57. Bc5 {[%clk 0:00:03.6]} 57... f5 {[%clk
0:00:04.4]} 58. b5 {[%clk 0:00:02.4]} 58... axb5 {[%clk 0:00:04.1]} 59. Bb6
{[%clk 0:00:01.7]} 59... Bxb6 {[%clk 0:00:03.9]} 0-1

[Event "Early-Titled-Tuesday-Blitz-January-23-2024"]
[Site "Chess.com"]
[Date "2024.01.23"]
[Round "10"]
[White "aghasiyevkamal"]
[Black "IlanSchnaider"]
[Result "1-0"]
[WhiteElo "2640"]
[BlackElo "2769"]
[TimeControl "180+1"]
[EndTime "9:57:25 PST"]
[Termination "aghasiyevkamal won on time"]

1. e4 {[%clk 0:02:47.8]} 1... c5 {[%clk 0:02:59.7]} 2. Nf3 {[%clk 0:02:47.2]}
2... d6 {[%clk 0:03:00.4]} 3. Bb5+ {[%clk 0:02:46.4]} 3... Bd7 {[%clk
0:03:00.6]} 4. Bxd7+ {[%clk 0:02:45.4]} 4... Qxd7 {[%clk 0:03:01.4]} 5. c4
{[%clk 0:02:44.6]} 5... e5 {[%clk 0:03:01.4]} 6. Nc3 {[%clk 0:02:44.6]} 6... Be7
{[%clk 0:03:00.8]} 7. a3 {[%clk 0:02:43.9]} 7... Nc6 {[%clk 0:03:00.4]} 8. Rb1
{[%clk 0:02:40.6]} 8... Bd8 {[%clk 0:03:00.6]} 9. b4 {[%clk 0:02:40.5]} 9...
Nge7 {[%clk 0:03:00.6]} 10. O-O {[%clk 0:02:36.8]} 10... O-O {[%clk 0:03:00.6]}
11. d3 {[%clk 0:02:31.8]} 11... f5 {[%clk 0:03:00.9]} 12. Bg5 {[%clk 0:02:27.3]}
12... Ng6 {[%clk 0:02:53.2]} 13. bxc5 {[%clk 0:02:21.3]} 13... dxc5 {[%clk
0:02:48.2]} 14. Nd5 {[%clk 0:02:06.5]} 14... Bxg5 {[%clk 0:02:09.6]} 15. Nxg5
{[%clk 0:02:06]} 15... Nd4 {[%clk 0:02:10.3]} 16. Nxh7 {[%clk 0:01:47.8]} 16...
fxe4 {[%clk 0:01:22.1]} 17. Ng5 {[%clk 0:01:37.9]} 17... Nf4 {[%clk 0:01:11.4]}
18. Nxf4 {[%clk 0:01:33.9]} 18... exf4 {[%clk 0:01:11.4]} 19. Qh5 {[%clk
0:01:27.4]} 19... Qf5 {[%clk 0:01:09.2]} 20. dxe4 {[%clk 0:01:27.4]} 20... f3
{[%clk 0:00:53.3]} 21. exf5 {[%clk 0:01:26.2]} 21... Ne2+ {[%clk 0:00:53.2]} 22.
Kh1 {[%clk 0:01:22.8]} 22... fxg2+ {[%clk 0:00:54.1]} 23. Kxg2 {[%clk
0:01:22.9]} 23... Nf4+ {[%clk 0:00:55]} 24. Kg1 {[%clk 0:01:15.9]} 24... Nxh5
{[%clk 0:00:55.9]} 25. Rxb7 {[%clk 0:01:14.1]} 25... Rxf5 {[%clk 0:00:55.5]} 26.
h4 {[%clk 0:01:12.5]} 26... Rf4 {[%clk 0:00:52]} 27. Re1 {[%clk 0:00:45.7]}
27... Raf8 {[%clk 0:00:32.7]} 28. f3 {[%clk 0:00:38.8]} 28... Rxh4 {[%clk
0:00:25.9]} 29. Re5 {[%clk 0:00:20.4]} 29... Rxc4 {[%clk 0:00:07.3]} 30. Ne6
{[%clk 0:00:16]} 30... Rc1+ {[%clk 0:00:07.4]} 31. Kf2 {[%clk 0:00:15.7]} 31...
Rc2+ {[%clk 0:00:05.1]} 32. Ke3 {[%clk 0:00:14.1]} 32... Rf7 {[%clk 0:00:05.1]}
33. Rb8+ {[%clk 0:00:12.6]} 33... Kh7 {[%clk 0:00:04.6]} 34. Ng5+ {[%clk
0:00:10.3]} 34... Kg6 {[%clk 0:00:03.7]} 35. Nxf7 {[%clk 0:00:10.4]} 35... Ng3
{[%clk 0:00:01.6]} 36. Rg5+ {[%clk 0:00:09.7]} 36... Kxf7 {[%clk 0:00:02.1]} 37.
Rb7+ {[%clk 0:00:09.6]} 37... Kf6 {[%clk 0:00:01.8]} 38. Rxg3 {[%clk 0:00:09.8]}
38... Rc3+ {[%clk 0:00:02.6]} 39. Kf4 {[%clk 0:00:08.4]} 39... Rc4+ {[%clk
0:00:03]} 40. Ke3 {[%clk 0:00:08.6]} 40... Rc3+ {[%clk 0:00:03.9]} 41. Kd2
{[%clk 0:00:08.7]} 41... Rxa3 {[%clk 0:00:04.2]} 42. Rbxg7 {[%clk 0:00:08.8]}
42... a5 {[%clk 0:00:03.8]} 43. Rc7 {[%clk 0:00:07.8]} 43... Ra2+ {[%clk
0:00:03.4]} 44. Kc3 {[%clk 0:00:07.8]} 44... Ra1 {[%clk 0:00:04]} 45. Rxc5
{[%clk 0:00:07.6]} 45... Rc1+ {[%clk 0:00:04.4]} 46. Kd4 {[%clk 0:00:08]} 46...
Rd1+ {[%clk 0:00:05.2]} 47. Kc4 {[%clk 0:00:08.5]} 47... a4 {[%clk 0:00:05.6]}
48. Ra5 {[%clk 0:00:08.4]} 48... Ra1 {[%clk 0:00:04.8]} 49. Kb4 {[%clk
0:00:08.2]} 49... Rb1+ {[%clk 0:00:03.5]} 50. Kxa4 {[%clk 0:00:08.3]} 50... Rb8
{[%clk 0:00:03.4]} 51. Rg4 {[%clk 0:00:08]} 51... Rh8 {[%clk 0:00:02.3]} 52. Rb4
{[%clk 0:00:07.8]} 52... Ke6 {[%clk 0:00:01.9]} 53. Rb6+ {[%clk 0:00:07.9]}
53... Kd7 {[%clk 0:00:02.5]} 54. Ra7+ {[%clk 0:00:07.6]} 54... Kc8 {[%clk
0:00:03.1]} 55. Rab7 {[%clk 0:00:07.8]} 55... Rh1 {[%clk 0:00:02.8]} 56. Rb4
{[%clk 0:00:06.9]} 56... Ra1+ {[%clk 0:00:02.7]} 57. Kb3 {[%clk 0:00:07.2]}
57... Rf1 {[%clk 0:00:02.5]} 58. Rf7 {[%clk 0:00:07]} 58... Rf2 {[%clk
0:00:01.5]} 59. Rh4 {[%clk 0:00:06.7]} 1-0

[Event "Early-Titled-Tuesday-Blitz-January-23-2024"]
[Site "Chess.com"]
[Date "2024.01.23"]
[Round "10"]
[White "MITerryble"]
[Black "kleinebeer98"]
[Result "1-0"]
[WhiteElo "3012"]
[BlackElo "2879"]
[TimeControl "180+1"]
[EndTime "9:57:35 PST"]
[Termination "MITerryble won on time"]

1. d4 {[%clk 0:03:00.9]} 1... Nf6 {[%clk 0:02:59.9]} 2. Bg5 {[%clk 0:03:00.3]}
2... d5 {[%clk 0:02:59.6]} 3. e3 {[%clk 0:03:00.5]} 3... c5 {[%clk 0:02:59.5]}
4. c3 {[%clk 0:03:00.9]} 4... Nc6 {[%clk 0:02:59.5]} 5. Nf3 {[%clk 0:03:01]}
5... h6 {[%clk 0:02:58.8]} 6. Bf4 {[%clk 0:02:55.2]} 6... cxd4 {[%clk
0:02:52.5]} 7. exd4 {[%clk 0:02:53.3]} 7... Bf5 {[%clk 0:02:53.1]} 8. Qb3 {[%clk
0:02:52]} 8... Qc8 {[%clk 0:02:47.1]} 9. Ne5 {[%clk 0:02:41.3]} 9... g5 {[%clk
0:02:44.6]} 10. Bg3 {[%clk 0:02:40.1]} 10... Ne4 {[%clk 0:02:43.5]} 11. Qxd5
{[%clk 0:02:34]} 11... e6 {[%clk 0:02:43.6]} 12. Qb3 {[%clk 0:02:13.1]} 12...
Nxg3 {[%clk 0:02:18.4]} 13. hxg3 {[%clk 0:02:11.5]} 13... Nxe5 {[%clk
0:02:12.7]} 14. dxe5 {[%clk 0:02:12.4]} 14... Bg7 {[%clk 0:02:12]} 15. g4 {[%clk
0:02:02.3]} 15... Bg6 {[%clk 0:02:03]} 16. Qb5+ {[%clk 0:01:51.3]} 16... Kf8
{[%clk 0:02:03.1]} 17. Nd2 {[%clk 0:01:51]} 17... a6 {[%clk 0:02:00.4]} 18. Qb4+
{[%clk 0:01:48.5]} 18... Kg8 {[%clk 0:02:00.6]} 19. Nf3 {[%clk 0:01:49]} 19...
Qc7 {[%clk 0:01:55.3]} 20. Qd6 {[%clk 0:01:34.7]} 20... Qa5 {[%clk 0:01:55.6]}
21. Be2 {[%clk 0:01:17.4]} 21... Rd8 {[%clk 0:01:51.8]} 22. Qe7 {[%clk
0:01:17.6]} 22... Rd5 {[%clk 0:01:24.4]} 23. Bc4 {[%clk 0:00:53]} 23... Rc5
{[%clk 0:01:05.8]} 24. Rd1 {[%clk 0:00:27.7]} 24... Bf8 {[%clk 0:00:39.9]} 25.
Rd8 {[%clk 0:00:27.5]} 25... Rxe5+ {[%clk 0:00:40.5]} 26. Nxe5 {[%clk
0:00:07.9]} 26... Qxe5+ {[%clk 0:00:41.4]} 27. Be2 {[%clk 0:00:06.1]} 27... Kg7
{[%clk 0:00:42.1]} 28. Qd7 {[%clk 0:00:03.6]} 28... b5 {[%clk 0:00:37.5]} 29.
Qd4 {[%clk 0:00:03.8]} 29... Qxd4 {[%clk 0:00:33]} 30. Rxd4 {[%clk 0:00:04.7]}
30... Bc5 {[%clk 0:00:29.2]} 31. Rd7 {[%clk 0:00:05.2]} 31... b4 {[%clk
0:00:26.4]} 32. Bd3 {[%clk 0:00:05.4]} 32... bxc3 {[%clk 0:00:24.5]} 33. bxc3
{[%clk 0:00:05.5]} 33... Rb8 {[%clk 0:00:22.5]} 34. Bxg6 {[%clk 0:00:05.5]}
34... Kxg6 {[%clk 0:00:23.4]} 35. O-O {[%clk 0:00:03]} 35... Rb2 {[%clk
0:00:24.1]} 36. a4 {[%clk 0:00:02.6]} 36... Rc2 {[%clk 0:00:13.2]} 37. Rd3
{[%clk 0:00:01.8]} 37... h5 {[%clk 0:00:08.7]} 38. gxh5+ {[%clk 0:00:02]} 38...
Kxh5 {[%clk 0:00:09.6]} 39. g3 {[%clk 0:00:02.9]} 39... f5 {[%clk 0:00:08.8]}
40. Kg2 {[%clk 0:00:03.3]} 40... Kg6 {[%clk 0:00:08.4]} 41. Rd7 {[%clk
0:00:02.3]} 41... g4 {[%clk 0:00:08.6]} 42. Rc7 {[%clk 0:00:02.7]} 42... Rxc3
{[%clk 0:00:06.4]} 43. Rc6 {[%clk 0:00:03.3]} 43... Kf6 {[%clk 0:00:05]} 44.
Rxa6 {[%clk 0:00:03.6]} 44... Bd4 {[%clk 0:00:04.4]} 45. Rd6 {[%clk 0:00:04]}
45... Ke5 {[%clk 0:00:03.9]} 46. Rd8 {[%clk 0:00:04.4]} 46... Bb6 {[%clk
0:00:03.4]} 47. Rb8 {[%clk 0:00:04.4]} 47... Ba7 {[%clk 0:00:03.3]} 48. Rb5+
{[%clk 0:00:05.3]} 48... Kf6 {[%clk 0:00:03.4]} 49. Ra5 {[%clk 0:00:05.5]} 49...
Bb6 {[%clk 0:00:03.3]} 50. Ra6 {[%clk 0:00:05.9]} 50... Bd4 {[%clk 0:00:04]} 51.
Re1 {[%clk 0:00:06.4]} 51... Be5 {[%clk 0:00:02.4]} 52. Ra5 {[%clk 0:00:05.7]}
52... Bd4 {[%clk 0:00:03]} 53. Ra6 {[%clk 0:00:04.9]} 53... Be5 {[%clk
0:00:03.7]} 54. Re2 {[%clk 0:00:04.9]} 54... Ra3 {[%clk 0:00:03.6]} 55. a5
{[%clk 0:00:04.9]} 55... Ra4 {[%clk 0:00:02.5]} 56. Ra8 {[%clk 0:00:04.9]} 56...
Bd4 {[%clk 0:00:02.3]} 57. a6 {[%clk 0:00:05.3]} 57... e5 {[%clk 0:00:03.2]} 58.
Rc2 {[%clk 0:00:04.5]} 58... f4 {[%clk 0:00:03.5]} 59. gxf4 {[%clk 0:00:03.4]}
59... exf4 {[%clk 0:00:04.4]} 60. f3 {[%clk 0:00:03.8]} 60... Ra3 {[%clk
0:00:04.2]} 61. fxg4 {[%clk 0:00:03.6]} 61... f3+ {[%clk 0:00:05.1]} 62. Kg3
{[%clk 0:00:02.4]} 62... f2+ {[%clk 0:00:04.5]} 63. Kg2 {[%clk 0:00:03.1]} 63...
Rg3+ {[%clk 0:00:05.1]} 64. Kxg3 {[%clk 0:00:02.6]} 64... f1=Q {[%clk 0:00:05]}
65. Rf8+ {[%clk 0:00:03.1]} 1-0

[Event "Early-Titled-Tuesday-Blitz-January-23-2024"]
[Site "Chess.com"]
[Date "2024.01.23"]
[Round "10"]
[White "vladgoncharov"]
[Black "BardArtem"]
[Result "0-1"]
[WhiteElo "2642"]
[BlackElo "2824"]
[TimeControl "180+1"]
[EndTime "9:57:36 PST"]
[Termination "BardArtem won on time"]

1. d4 {[%clk 0:03:00.9]} 1... Nf6 {[%clk 0:02:59.6]} 2. c4 {[%clk 0:03:00.4]}
2... b6 {[%clk 0:02:59.8]} 3. Nc3 {[%clk 0:02:59.2]} 3... Bb7 {[%clk 0:03:00.3]}
4. d5 {[%clk 0:02:59.4]} 4... e6 {[%clk 0:02:56.9]} 5. e4 {[%clk 0:02:58.9]}
5... Bb4 {[%clk 0:02:57.2]} 6. Bd3 {[%clk 0:02:58.2]} 6... O-O {[%clk
0:02:56.3]} 7. Ne2 {[%clk 0:02:57.7]} 7... Na6 {[%clk 0:02:56.5]} 8. O-O {[%clk
0:02:54.4]} 8... Nc5 {[%clk 0:02:56.5]} 9. Bg5 {[%clk 0:02:44.2]} 9... Bxc3
{[%clk 0:02:41.3]} 10. Nxc3 {[%clk 0:02:43.2]} 10... d6 {[%clk 0:02:41.7]} 11.
b4 {[%clk 0:02:11.6]} 11... Nxd3 {[%clk 0:02:38.8]} 12. Qxd3 {[%clk 0:02:11.1]}
12... Re8 {[%clk 0:02:38.4]} 13. Rae1 {[%clk 0:02:01.6]} 13... Qe7 {[%clk
0:02:30.7]} 14. f4 {[%clk 0:01:52.2]} 14... Qf8 {[%clk 0:02:17.4]} 15. Bxf6
{[%clk 0:01:45.9]} 15... gxf6 {[%clk 0:02:18.3]} 16. Rf3 {[%clk 0:01:42.4]}
16... Kh8 {[%clk 0:02:15.8]} 17. Qd4 {[%clk 0:01:26.4]} 17... Qh6 {[%clk
0:02:03.2]} 18. Ref1 {[%clk 0:01:24.6]} 18... Bc8 {[%clk 0:01:54.9]} 19. Qf2
{[%clk 0:01:18.8]} 19... Rg8 {[%clk 0:01:49.3]} 20. Nb5 {[%clk 0:01:06.5]} 20...
Bd7 {[%clk 0:01:44.3]} 21. Nxc7 {[%clk 0:00:49.9]} 21... Rac8 {[%clk 0:01:42.8]}
22. dxe6 {[%clk 0:00:47]} 22... fxe6 {[%clk 0:01:41.6]} 23. Nb5 {[%clk
0:00:46.6]} 23... Bxb5 {[%clk 0:01:38.3]} 24. cxb5 {[%clk 0:00:47.5]} 24... Rc4
{[%clk 0:01:36.6]} 25. e5 {[%clk 0:00:38.5]} 25... dxe5 {[%clk 0:01:33.9]} 26.
fxe5 {[%clk 0:00:38.3]} 26... f5 {[%clk 0:01:34.3]} 27. Rf4 {[%clk 0:00:26.9]}
27... Rcc8 {[%clk 0:01:12.6]} 28. Rh4 {[%clk 0:00:23.7]} 28... Qg7 {[%clk
0:01:13]} 29. Qe2 {[%clk 0:00:21.2]} 29... Qe7 {[%clk 0:01:04.9]} 30. Rh3 {[%clk
0:00:19.2]} 30... Rg7 {[%clk 0:00:49.2]} 31. a3 {[%clk 0:00:17.9]} 31... Qd7
{[%clk 0:00:47.4]} 32. Kh1 {[%clk 0:00:17.2]} 32... Qd5 {[%clk 0:00:44]} 33. Rg1
{[%clk 0:00:17.1]} 33... Rcg8 {[%clk 0:00:39.4]} 34. Rd3 {[%clk 0:00:13.2]}
34... Qc4 {[%clk 0:00:29.4]} 35. Re3 {[%clk 0:00:11.2]} 35... Qh4 {[%clk
0:00:29.1]} 36. h3 {[%clk 0:00:10.2]} 36... f4 {[%clk 0:00:23.3]} 37. Rf3 {[%clk
0:00:09.4]} 37... Rg3 {[%clk 0:00:24]} 38. Kh2 {[%clk 0:00:08.1]} 38... Qh5
{[%clk 0:00:17.6]} 39. Qf2 {[%clk 0:00:07.5]} 39... Qxe5 {[%clk 0:00:12.8]} 40.
Rxf4 {[%clk 0:00:06.3]} 40... R3g7 {[%clk 0:00:11.8]} 41. g3 {[%clk 0:00:06.1]}
41... Qh5 {[%clk 0:00:08.8]} 42. Rg2 {[%clk 0:00:06.2]} 42... e5 {[%clk
0:00:09.3]} 43. Rf5 {[%clk 0:00:04.3]} 43... Qe8 {[%clk 0:00:07.4]} 44. g4
{[%clk 0:00:04.4]} 44... e4 {[%clk 0:00:07.8]} 45. Qf4 {[%clk 0:00:04.6]} 45...
Re7 {[%clk 0:00:08]} 46. Re2 {[%clk 0:00:04.5]} 46... e3 {[%clk 0:00:08]} 47.
Kg3 {[%clk 0:00:03.6]} 47... Re6 {[%clk 0:00:07.6]} 48. Qf3 {[%clk 0:00:03.8]}
48... Qe7 {[%clk 0:00:05.9]} 49. Kg2 {[%clk 0:00:04]} 49... Re8 {[%clk
0:00:06.1]} 50. Rf7 {[%clk 0:00:03.9]} 50... Qg5 {[%clk 0:00:05.6]} 51. Rf8+
{[%clk 0:00:03.5]} 51... Rxf8 {[%clk 0:00:02.5]} 52. Qxf8+ {[%clk 0:00:03.3]}
52... Qg8 {[%clk 0:00:03.4]} 53. Qxg8+ {[%clk 0:00:04]} 53... Kxg8 {[%clk
0:00:04.3]} 54. Kf3 {[%clk 0:00:04.4]} 54... Re5 {[%clk 0:00:03.8]} 55. Rxe3
{[%clk 0:00:04.5]} 55... Rxb5 {[%clk 0:00:04.5]} 56. Re8+ {[%clk 0:00:04.5]}
56... Kf7 {[%clk 0:00:04.1]} 57. Ra8 {[%clk 0:00:03.6]} 57... a5 {[%clk
0:00:04.6]} 58. bxa5 {[%clk 0:00:03.6]} 58... Rb3+ {[%clk 0:00:04.6]} 59. Kf4
{[%clk 0:00:03.2]} 59... Rxa3 {[%clk 0:00:05.5]} 60. a6 {[%clk 0:00:01.4]} 60...
b5 {[%clk 0:00:04.3]} 0-1

[Event "Early-Titled-Tuesday-Blitz-January-23-2024"]
[Site "Chess.com"]
[Date "2024.01.23"]
[Round "10"]
[White "CSB7"]
[Black "ScofieldMichael01"]
[Result "1-0"]
[WhiteElo "2737"]
[BlackElo "2610"]
[TimeControl "180+1"]
[EndTime "9:57:36 PST"]
[Termination "CSB7 won by checkmate"]

1. e4 {[%clk 0:03:00.9]} 1... c5 {[%clk 0:02:59.9]} 2. Nc3 {[%clk 0:02:58.4]}
2... Nc6 {[%clk 0:02:57.3]} 3. Bb5 {[%clk 0:02:57.6]} 3... Nd4 {[%clk
0:02:57.1]} 4. Nf3 {[%clk 0:02:54.2]} 4... a6 {[%clk 0:02:57]} 5. Bd3 {[%clk
0:02:53.8]} 5... Nc6 {[%clk 0:02:54.5]} 6. O-O {[%clk 0:02:53.8]} 6... e5 {[%clk
0:02:54.7]} 7. a4 {[%clk 0:02:49.3]} 7... g6 {[%clk 0:02:54.6]} 8. Bc4 {[%clk
0:02:45.2]} 8... Bg7 {[%clk 0:02:54.1]} 9. d3 {[%clk 0:02:39.9]} 9... Nge7
{[%clk 0:02:45.7]} 10. Ng5 {[%clk 0:02:36.3]} 10... O-O {[%clk 0:02:45.4]} 11.
f4 {[%clk 0:02:36.4]} 11... h6 {[%clk 0:02:34.2]} 12. Nxf7 {[%clk 0:01:24.9]}
12... Rxf7 {[%clk 0:02:34]} 13. f5 {[%clk 0:01:25.7]} 13... d5 {[%clk 0:02:12]}
14. Nxd5 {[%clk 0:01:15.9]} 14... Kh8 {[%clk 0:01:28.1]} 15. f6 {[%clk
0:01:04.2]} 15... Nxd5 {[%clk 0:00:58.6]} 16. fxg7+ {[%clk 0:01:02.8]} 16...
Rxg7 {[%clk 0:00:52.8]} 17. Bxd5 {[%clk 0:01:01.8]} 17... Kh7 {[%clk 0:00:44.8]}
18. Qd2 {[%clk 0:00:45.9]} 18... Qh4 {[%clk 0:00:42.6]} 19. Qf2 {[%clk
0:00:40.3]} 19... Qh5 {[%clk 0:00:40.1]} 20. Bxc6 {[%clk 0:00:07.7]} 20... bxc6
{[%clk 0:00:39.5]} 21. Qxc5 {[%clk 0:00:08.3]} 21... Qe2 {[%clk 0:00:26.9]} 22.
Qf2 {[%clk 0:00:07.9]} 22... Qh5 {[%clk 0:00:26.1]} 23. Bd2 {[%clk 0:00:07.5]}
23... Be6 {[%clk 0:00:26.3]} 24. Bc3 {[%clk 0:00:07.6]} 24... Rf7 {[%clk
0:00:26]} 25. Qg3 {[%clk 0:00:07.1]} 25... Raf8 {[%clk 0:00:23.7]} 26. Rxf7+
{[%clk 0:00:03.9]} 26... Rxf7 {[%clk 0:00:16.1]} 27. Qxe5 {[%clk 0:00:04.8]}
27... Qxe5 {[%clk 0:00:16.5]} 28. Bxe5 {[%clk 0:00:05.4]} 28... Re7 {[%clk
0:00:15.4]} 29. Bc3 {[%clk 0:00:05.8]} 29... c5 {[%clk 0:00:12.7]} 30. b3 {[%clk
0:00:05.5]} 30... Rd7 {[%clk 0:00:11.8]} 31. Rf1 {[%clk 0:00:05.6]} 31... Bg4
{[%clk 0:00:08.3]} 32. h3 {[%clk 0:00:03.3]} 32... Be2 {[%clk 0:00:08.8]} 33.
Rf2 {[%clk 0:00:03.4]} 33... Bd1 {[%clk 0:00:09]} 34. Rd2 {[%clk 0:00:04]} 34...
Bh5 {[%clk 0:00:08.4]} 35. g4 {[%clk 0:00:04.4]} 35... c4 {[%clk 0:00:07.4]} 36.
bxc4 {[%clk 0:00:03.5]} 36... Rb7 {[%clk 0:00:07.3]} 37. gxh5 {[%clk 0:00:03.5]}
37... Rb1+ {[%clk 0:00:08.2]} 38. Kg2 {[%clk 0:00:03.5]} 38... gxh5 {[%clk
0:00:08.5]} 39. Re2 {[%clk 0:00:04.1]} 39... Rc1 {[%clk 0:00:06.1]} 40. e5
{[%clk 0:00:04.5]} 40... Kg8 {[%clk 0:00:06.9]} 41. e6 {[%clk 0:00:05]} 41...
Kf8 {[%clk 0:00:07.8]} 42. d4 {[%clk 0:00:05.2]} 42... Rd1 {[%clk 0:00:07.2]}
43. d5 {[%clk 0:00:05.2]} 43... Ke7 {[%clk 0:00:08.1]} 44. Bb4+ {[%clk
0:00:04.8]} 44... Ke8 {[%clk 0:00:09]} 45. d6 {[%clk 0:00:05]} 45... Kf8 {[%clk
0:00:06.3]} 46. d7+ {[%clk 0:00:05.1]} 46... Kg7 {[%clk 0:00:07.2]} 47. e7
{[%clk 0:00:05.5]} 47... h4 {[%clk 0:00:06.7]} 48. e8=Q {[%clk 0:00:04.7]} 48...
h5 {[%clk 0:00:07.6]} 49. Qe7+ {[%clk 0:00:04.7]} 49... Kg6 {[%clk 0:00:08.5]}
50. Qe6+ {[%clk 0:00:05]} 50... Kg7 {[%clk 0:00:08.8]} 51. Bc3+ {[%clk
0:00:05.2]} 51... Rd4 {[%clk 0:00:08.9]} 52. Bxd4+ {[%clk 0:00:04.9]} 52... Kf8
{[%clk 0:00:09.8]} 53. Qxa6 {[%clk 0:00:03.8]} 53... Kf7 {[%clk 0:00:09.2]} 54.
Qe6+ {[%clk 0:00:04.1]} 54... Kf8 {[%clk 0:00:08.6]} 55. Qe5 {[%clk 0:00:04.4]}
55... Kf7 {[%clk 0:00:08.9]} 56. c5 {[%clk 0:00:04.8]} 56... Kf8 {[%clk
0:00:09.3]} 57. Qe4 {[%clk 0:00:05.1]} 57... Kf7 {[%clk 0:00:10.2]} 58. c6
{[%clk 0:00:05.4]} 58... Kf8 {[%clk 0:00:09.6]} 59. c7 {[%clk 0:00:05.8]} 59...
Kf7 {[%clk 0:00:10.5]} 60. c4 {[%clk 0:00:03.9]} 60... Kf8 {[%clk 0:00:10.9]}
61. Qe3 {[%clk 0:00:03]} 61... Kf7 {[%clk 0:00:11.8]} 62. c8=Q {[%clk 0:00:03]}
62... Kg6 {[%clk 0:00:12.7]} 63. a5 {[%clk 0:00:03.1]} 63... Kf7 {[%clk
0:00:13.6]} 64. a6 {[%clk 0:00:03.6]} 64... Kg6 {[%clk 0:00:14.5]} 65. a7 {[%clk
0:00:04.2]} 65... Kf7 {[%clk 0:00:15.4]} 66. c5 {[%clk 0:00:04.8]} 66... Kg6
{[%clk 0:00:16.3]} 67. c6 {[%clk 0:00:05.4]} 67... Kf7 {[%clk 0:00:17.2]} 68. c7
{[%clk 0:00:05.9]} 68... Kg6 {[%clk 0:00:18]} 69. Qb8 {[%clk 0:00:06]} 69... Kf7
{[%clk 0:00:18.9]} 70. a8=Q {[%clk 0:00:06.6]} 70... Kg6 {[%clk 0:00:19.8]} 71.
c8=Q {[%clk 0:00:07.2]} 71... Kf7 {[%clk 0:00:20.7]} 72. Bf6 {[%clk 0:00:06.8]}
72... Kg6 {[%clk 0:00:21.6]} 73. Rf2 {[%clk 0:00:06.8]} 73... Kf7 {[%clk
0:00:22.5]} 74. Bd4+ {[%clk 0:00:06.9]} 74... Kg6 {[%clk 0:00:23.4]} 75. Rf6+
{[%clk 0:00:06.9]} 75... Kh7 {[%clk 0:00:23.9]} 76. Rf7+ {[%clk 0:00:07.1]}
76... Kg6 {[%clk 0:00:24.8]} 77. Rg7+ {[%clk 0:00:06.4]} 77... Kf5 {[%clk
0:00:24.3]} 78. d8=Q# {[%clk 0:00:06.7]} 1-0